fUST/lending_fUST_20250218
["ID","MTS","AMOUNT","RATE_DAILY","PERIOD"]
[353459047,1739850643123,-501.57008291,0.00017209,2]
[353459049,1739850643133,-796.5,0.00017215,2]
[353459051,1739850643142,-1887.46,0.00017216,2]
[353459052,1739850643151,-500.0,0.00017216,2]
[353459053,1739850643161,-510.12,0.00017276,2]
[353459055,1739850643170,-6606.04,0.00017276,2]
[353459056,1739850643180,-500.0,0.00017276,2]
[353459058,1739850643190,-2374.79,0.00017276,2]
[353459060,1739850643199,-500.0,0.00017276,2]
[353459061,1739850643208,-500.0,0.00017276,2]
[353459062,1739850643218,-500.0,0.00017276,2]
[353459064,1739850643227,-500.0,0.00017284,2]
[353459066,1739850643237,-500.0,0.00017284,2]
[353459068,1739850643247,-519.69,0.00017284,2]
[353459070,1739850643256,-500.0,0.00017284,2]
[353459071,1739850643266,-500.0,0.00017284,2]
[353459072,1739850643276,-500.0,0.00017284,2]
[353459074,1739850643287,-1887.46,0.00017298,2]
[353459075,1739850643296,-500.0,0.00017298,2]
[353459076,1739850643306,-500.0,0.00017311,2]
[353459077,1739850643315,-400.0,0.00017332,2]
[353459078,1739850643325,-337.78566325,0.00017337,2]
[353459080,1739850643334,-510.12,0.00017359,2]
[353459082,1739850643343,-6606.04,0.00017359,2]
[353459083,1739850643352,-500.0,0.00017359,2]
[353459084,1739850643361,-2374.79,0.00017359,2]
[353459085,1739850643371,-500.0,0.00017359,2]
[353459086,1739850643382,-500.0,0.00017359,2]
[353459088,1739850643392,-500.0,0.00017359,2]
[353459090,1739850643401,-796.5,0.00017359,2]
[353459092,1739850643411,-500.0,0.00017366,2]
[353459094,1739850643420,-519.69,0.00017366,2]
[353459095,1739850643430,-500.0,0.00017366,2]
[353459096,1739850643440,-500.0,0.00017366,2]
[353459097,1739850643450,-500.0,0.00017367,2]
[353459098,1739850643460,-514.51,0.00017367,2]
[353459099,1739850643471,-171.2708115,0.00017371,2]
[353459100,1739850643480,-1887.46,0.00017381,2]
[353459101,1739850643490,-500.0,0.00017381,2]
[353459102,1739850643500,-510.12,0.00017441,2]
[353459104,1739850643509,-6606.04,0.00017441,2]
[353459106,1739850643519,-500.0,0.00017441,2]
[353459107,1739850643528,-2374.79,0.00017441,2]
[353459108,1739850643538,-534.52,0.00017441,2]
[353459109,1739850643547,-500.0,0.00017441,2]
[353459110,1739850643557,-500.0,0.00017441,2]
[353459111,1739850643567,-796.5,0.00017441,2]
[353459112,1739850643576,-500.0,0.00017449,2]
[353459113,1739850643586,-500.0,0.00017449,2]
[353459114,1739850643596,-519.69,0.00017449,2]
[353459115,1739850643607,-500.0,0.00017449,2]
[353459116,1739850643616,-500.0,0.00017449,2]
[353459117,1739850643626,-1887.46,0.00017463,2]
[353459118,1739850643635,-500.18,0.00017463,2]
[353459119,1739850643645,-510.12,0.00017523,2]
[353459120,1739850643655,-6606.04,0.00017523,2]
[353459121,1739850643665,-500.0,0.00017523,2]
[353459122,1739850643674,-2374.79,0.00017523,2]
[353459123,1739850643684,-500.0,0.00017523,2]
[353459124,1739850643694,-500.0,0.00017523,2]
[353459125,1739850643703,-796.5,0.00017523,2]
[353459126,1739850643713,-237.03,0.00017531,2]
[353459127,1739850643723,-276.75,0.00017531,2]
[353459128,1739850643732,-519.69,0.00017531,2]
[353459129,1739850643742,-500.0,0.00017531,2]
[353459130,1739850643752,-500.0,0.00017531,2]
[353459131,1739850643762,-1887.46,0.00017545,2]
[353459132,1739850643773,-796.5,0.00017552,2]
[353459133,1739850643783,-501.19065359,0.00017553,2]
[353459134,1739850643794,-501.82867103,0.00017553,2]
[353459135,1739850643804,-500.0,0.00017553,2]
[353459136,1739850643813,-501.80166081,0.00017553,2]
[353459137,1739850643823,-500.0,0.00017553,2]
[353459138,1739850643833,-450.29929733,0.00017553,2]
[353459139,1739850643843,-501.41084499,0.00017553,2]
[353459140,1739850643853,-432.52606865,0.00017553,2]
[353459141,1739850643863,-500.0,0.00017553,2]
[353459142,1739850643872,-500.6964463,0.00017553,2]
[353459143,1739850643963,-501.3895845,0.00017553,2]
[353459144,1739850643973,-500.80167792,0.00017553,2]
[353459145,1739850643983,-510.12,0.00017605,2]
[353459146,1739850643993,-6606.04,0.00017605,2]
[353459147,1739850644003,-500.0,0.00017605,2]
[353459148,1739850644012,-2374.79,0.00017605,2]
[353459149,1739850644024,-500.0,0.00017605,2]
[353459150,1739850644033,-489.35,0.00017605,2]
[353459151,1739850644042,-519.69,0.00017613,2]
[353459152,1739850644052,-500.0,0.00017613,2]
[353459153,1739850644062,-500.0,0.00017613,2]
[353459154,1739850644072,-796.5,0.00017616,2]
[353459155,1739850644082,-3000.0,0.00017617,2]
[353459156,1739850644091,-337.78566325,0.00017618,2]
[353459157,1739850644101,-1887.46,0.00017627,2]
[353459158,1739850644111,-170.0787211,0.0001764,2]
[353459159,1739850644121,-171.2708115,0.00017677,2]
[353459160,1739850644131,-510.12,0.00017687,2]
[353459161,1739850644140,-6606.04,0.00017687,2]
[353459162,1739850644150,-500.0,0.00017687,2]
[353459163,1739850644160,-2374.79,0.00017687,2]
[353459164,1739850644169,-336.95,0.00017687,2]
[353459165,1739850644179,-796.5,0.00017687,2]
[353459166,1739850644188,-519.69,0.00017695,2]
[353459167,1739850644198,-500.0,0.00017695,2]
[353459168,1739850644207,-560.31,0.00017695,2]
[353459169,1739850644217,-1887.46,0.00017709,2]
[353459170,1739850644226,-420.0,0.00017746,2]
[353459171,1739850644236,-796.5,0.00017769,2]
[353459172,1739850644245,-510.12,0.0001777,2]
[353459173,1739850644255,-6606.04,0.0001777,2]
[353459174,1739850644264,-500.0,0.0001777,2]
[353459175,1739850644274,-2374.79,0.0001777,2]
[353459176,1739850644284,-519.69,0.00017777,2]
[353459177,1739850644293,-500.0,0.00017777,2]
[353459178,1739850644302,-1887.46,0.00017792,2]
[353459179,1739850644311,-1000.0,0.000178,30]
[353459180,1739850644321,-510.12,0.00017852,2]
[353459181,1739850644331,-6606.04,0.00017852,2]
[353459182,1739850644340,-500.0,0.00017852,2]
[353459183,1739850644350,-2374.79,0.00017852,2]
[353459184,1739850644359,-503.002767,0.00017859,2]
[353459185,1739850644369,-519.69,0.0001786,2]
[353459186,1739850644379,-500.0,0.0001786,2]
[353459187,1739850644388,-796.5,0.00017873,2]
[353459188,1739850644398,-796.5,0.00017873,2]
[353459189,1739850644407,-796.5,0.00017873,2]
[353459190,1739850644417,-796.5,0.00017873,2]
[353459191,1739850644427,-796.67691822,0.00017873,2]
[353459192,1739850644436,-1887.46,0.00017874,2]
[353459193,1739850644446,-501.11670232,0.00017899,2]
[353459194,1739850644455,-501.89812997,0.00017899,2]
[353459195,1739850644465,-501.07865871,0.00017899,2]
[353459196,1739850644475,-500.0,0.00017899,2]
[353459197,1739850644485,-502.33056316,0.00017899,2]
[353459198,1739850644494,-337.78566325,0.000179,2]
[353459199,1739850644504,-159.93229297,0.000179,2]
[353459200,1739850644514,-159.93229297,0.000179,2]
[353459201,1739850644524,-159.93229297,0.000179,2]
[353459202,1739850644534,-159.93229297,0.000179,2]
[353459203,1739850644544,-159.93229297,0.000179,2]
[353459204,1739850644553,-159.93229297,0.000179,2]
[353459205,1739850644563,-159.93229297,0.000179,2]
[353459206,1739850644572,-159.93,0.000179,2]
[353459207,1739850644581,-157.12646327,0.000179,2]
[353459208,1739850644591,-157.12646327,0.000179,2]
[353459209,1739850644601,-157.12646327,0.000179,2]
[353459210,1739850644610,-157.12646327,0.000179,2]
[353459211,1739850644620,-157.12646327,0.000179,2]
[353459212,1739850644630,-157.12646327,0.000179,2]
[353459213,1739850644639,-157.12646327,0.000179,2]
[353459214,1739850644649,-157.12646327,0.000179,2]
[353459215,1739850644658,-157.12646327,0.000179,2]
[353459216,1739850644668,-157.12646327,0.000179,2]
[353459217,1739850644677,-157.12646327,0.000179,2]
[353459218,1739850644687,-157.12646327,0.000179,2]
[353459219,1739850644696,-157.12646327,0.000179,2]
[353459220,1739850644706,-157.12646327,0.000179,2]
[353459221,1739850644716,-157.12646327,0.000179,2]
[353459222,1739850644725,-157.12646327,0.000179,2]
[353459223,1739850644735,-157.12646327,0.000179,2]
[353459224,1739850644745,-157.12646327,0.000179,2]
[353459225,1739850644754,-157.12,0.000179,2]
[353459226,1739850644763,-7150.72474491,0.000179,2]
[353459227,1739850644773,-510.12,0.00017934,2]
[353459228,1739850644784,-6606.04,0.00017934,2]
[353459229,1739850644793,-500.0,0.00017934,2]
[353459230,1739850644803,-2374.79,0.00017934,2]
[353459231,1739850644812,-519.69,0.00017942,2]
[353459232,1739850644821,-500.0,0.00017942,2]
[353459233,1739850644831,-1887.46,0.00017956,2]
[353459234,1739850644840,-502.8772763,0.00017973,2]
[353459235,1739850644850,-500.0,0.00017973,2]
[353459236,1739850644859,-501.8274151,0.00017981,2]
[353459237,1739850644868,-171.2708115,0.00017989,2]
[353459238,1739850644878,-171.2708115,0.0001799,2]
[353459239,1739850644887,-2055.249738,0.0001799,2]
[353459240,1739850644897,-152.3254028,0.00017999,2]
[353459241,1739850644906,-50685.19767218,0.00018,5]
[353459242,1739850644915,-2409024.03321859,0.00018,15]
[353459243,1739850645345,-500.0,0.00016399,2]
[353459244,1739850645354,-500.0,0.00016782,2]
[353459245,1739850645364,-500.0,0.0001679,2]
[353459246,1739850645373,-500.0,0.0001679,2]
[353459247,1739850645383,-500.0,0.00016799,2]
[353459248,1739850645392,-500.0,0.00016823,2]
[353459249,1739850645401,-500.0,0.00016865,2]
[353459250,1739850645411,-3241.15429842,0.00018,5]
[353459251,1739850645420,-272267.41300667,0.00018,15]
[353459252,1739850645462,542.64,0.000154,2]
[353459253,1739850645530,500.0,0.000154,2]
[353459254,1739850645586,527.0261349,0.000154,2]
[353459255,1739850645617,501.66895119,0.000154,2]
[353459268,1739850646532,-500.0,0.00016886,2]
[353459269,1739850646541,-500.0,0.00016947,2]
[353459270,1739850646551,-500.0,0.00016969,2]
[353459271,1739850646560,-500.0,0.00017051,2]
[353459272,1739850646569,-500.0,0.00017119,2]
[353459273,1739850646581,-500.0,0.00017194,2]
[353459274,1739850646591,-500.0,0.00017276,2]
[353459275,1739850646600,-500.0,0.00017366,2]
[353459276,1739850646609,-500.0,0.00017462,2]
[353459277,1739850646619,-500.0,0.00017544,2]
[353459278,1739850646628,-500.0,0.00017552,2]
[353459279,1739850646638,-243.21363271,0.00017626,2]
[353459280,1739850646647,-32760.19680173,0.00018,15]
[353459281,1739850649545,247.63597903,0.000154,2]
[353459282,1739850650383,500.0,0.000154,2]
[353459283,1739850660396,508.42805449,0.000154,2]
[353459284,1739850667530,415.33513168,0.000154,2]
[353459285,1739850667592,509.45484516,0.000154,2]
[353459286,1739850669448,504.5320964,0.000154,2]
[353459287,1739850674651,633.30671295,0.000154,2]
[353459288,1739850676059,290.57924227,0.000154,2]
[353459289,1739850676493,600.47678787,0.000154,2]
[353459290,1739850678305,510.16500285,0.000154,2]
[353459291,1739850680434,229.27046621,0.000154,2]
[353459292,1739850680459,500.0,0.000154,2]
[353459293,1739850681064,506.34000117,0.000154,2]
[353459294,1739850686833,513.57758851,0.000154,2]
[353459295,1739850687223,503.3429473,0.000154,2]
[353459296,1739850689152,506.46097388,0.000154,2]
[353459297,1739850690542,505.77826541,0.000154,2]
[353459298,1739850691095,502.99168045,0.000154,2]
[353459299,1739850691645,358.65232528,0.000154,2]
[353459300,1739850702283,500.0,0.000154,2]
[353459301,1739850707430,500.0,0.000154,2]
[353459302,1739850708708,643.23,0.000154,2]
[353459303,1739850710116,628.55,0.000154,2]
[353459304,1739850717795,500.0,0.000154,2]
[353459305,1739850720149,500.0,0.000154,2]
[353459306,1739850722048,505.93285351,0.000154,2]
[353459307,1739850724772,500.0,0.000154,2]
[353459308,1739850725194,504.57787772,0.000154,2]
[353459309,1739850725224,500.0,0.000154,2]
[353459310,1739850728483,504.65954649,0.000154,2]
[353459311,1739850733086,500.0,0.000154,2]
[353459312,1739850733823,500.0,0.000154,2]
[353459313,1739850734621,500.0,0.000154,2]
[353459314,1739850735613,500.0,0.000154,2]
[353459315,1739850736933,500.0,0.000154,2]
[353459316,1739850738056,500.0,0.000154,2]
[353459317,1739850738608,502.51766207,0.000154,2]
[353459318,1739850742607,501.37182933,0.000154,2]
[353459319,1739850746519,500.0,0.000154,2]
[353459322,1739851556162,-161.88374919,0.0001016,2]
[353459323,1739851556185,-161.88374919,0.00010263,2]
[353459324,1739851556207,-400.0,0.00010685,2]
[353459325,1739851556233,-35.02635945,0.00013368,4]
[353459326,1739851636104,-124.17192326,0.00013368,4]
[353459327,1739851636125,-151.59903317,0.00013368,4]
[353459328,1739851636147,-399.333631,0.0001353,2]
[353459329,1739851641082,-788.36939163,0.0001353,2]
[353459330,1739851641104,-246.12792367,0.00013667,2]
[353459331,1739851645096,-314.21200378,0.00013667,2]
[353459332,1739851650089,-965.91464245,0.00013667,2]
[353459333,1739851650112,-175.4288242,0.00013699,2]
[353459334,1739851650133,-350.3386557,0.00013878,2]
[353459335,1739851650157,-250.0,0.00014059,2]
[353459336,1739851650180,-600.0,0.00014164,2]
[353459337,1739851650203,-336.50585511,0.0001425,2]
[353459338,1739851650225,-150.0,0.000149,2]
[353459339,1739851650247,-300.0,0.00015273,2]
[353459340,1739851650273,-150.0,0.00015274,2]
[353459341,1739851650295,-1971.0,0.00015274,2]
[353459342,1739851650315,-538.0,0.00015274,2]
[353459343,1739851650336,-68.02361885,0.00015274,2]
[353459344,1739851774104,-600.0,0.00014164,2]
[353459345,1739851774127,-2222.97638115,0.00015274,2]
[353459346,1739851774262,-396.0,0.00015274,2]
[353459347,1739851774286,-300.0,0.00015326,2]
[353459348,1739851774312,-16020.66206104,0.00015327,2]
[353459349,1739851774335,-500.0,0.00015373,2]
[353459350,1739851774356,-502.8772763,0.00015373,2]
[353459351,1739851774379,-500.0,0.00015373,2]
[353459352,1739851774402,-220.56568678,0.00015382,2]
[353459353,1739851774423,-3211.32771552,0.00015389,2]
[353459354,1739851774445,-3211.32771552,0.0001539,2]
[353459355,1739851774466,-500.0,0.00015398,2]
[353459356,1739851774494,-636.67959803,0.00015398,2]
[353459357,1739851774516,-454.88624005,0.00015398,2]
[353459358,1739851774540,-500.0,0.00015398,2]
[353459359,1739851774561,-500.0,0.00015398,2]
[353459360,1739851774583,-392.80622422,0.00015398,2]
[353459361,1739851774604,-502.51345452,0.00015398,2]
[353459362,1739851774626,-500.0,0.00015398,2]
[353459363,1739851774648,-500.0,0.00015398,2]
[353459364,1739851774670,-500.0,0.00015398,2]
[353459365,1739851774694,-500.0,0.00015398,2]
[353459366,1739851774717,-500.0,0.00015398,2]
[353459367,1739851774740,-500.0,0.00015398,2]
[353459368,1739851774762,-500.0,0.00015398,2]
[353459369,1739851774787,-500.0,0.00015398,2]
[353459370,1739851774808,-500.0,0.00015398,2]
[353459371,1739851774831,-500.0,0.00015398,2]
[353459372,1739851774854,-500.0,0.00015398,2]
[353459373,1739851774877,-500.0,0.00015398,2]
[353459374,1739851774900,-500.0,0.00015398,2]
[353459375,1739851774923,-500.0,0.00015398,2]
[353459376,1739851774945,-500.0,0.00015398,2]
[353459377,1739851774967,-500.0,0.00015398,2]
[353459378,1739851774988,-500.0,0.00015398,2]
[353459379,1739851775011,-500.0,0.00015398,2]
[353459380,1739851775033,-231.62425854,0.00015398,2]
[353459381,1739851775055,-500.0,0.00015398,2]
[353459382,1739851775076,-500.0,0.00015398,2]
[353459383,1739851775099,-545.88140286,0.00015398,2]
[353459384,1739851775121,-500.0,0.00015398,2]
[353459385,1739851775143,-500.0,0.00015398,2]
[353459386,1739851775165,-500.0,0.00015398,2]
[353459387,1739851775187,-500.0,0.00015398,2]
[353459388,1739851775208,-500.0,0.00015398,2]
[353459389,1739851775230,-500.0,0.00015398,2]
[353459390,1739851775252,-500.0,0.00015398,2]
[353459391,1739851775273,-500.0,0.00015398,2]
[353459392,1739851775300,-500.0,0.00015398,2]
[353459393,1739851775322,-500.0,0.00015398,2]
[353459394,1739851775344,-555.27390656,0.00015398,2]
[353459395,1739851775366,-500.0,0.00015398,2]
[353459396,1739851775389,-500.0,0.00015398,2]
[353459397,1739851775411,-500.0,0.00015398,2]
[353459398,1739851775432,-500.0,0.00015398,2]
[353459399,1739851775454,-500.0,0.00015398,2]
[353459400,1739851775476,-500.0,0.00015398,2]
[353459401,1739851775498,-500.0,0.00015398,2]
[353459402,1739851775520,-500.0,0.00015398,2]
[353459403,1739851775542,-500.0,0.00015398,2]
[353459404,1739851775563,-500.0,0.00015398,2]
[353459405,1739851775584,-500.0,0.00015398,2]
[353459406,1739851775606,-500.0,0.00015398,2]
[353459407,1739851775626,-500.0,0.00015398,2]
[353459408,1739851775647,-500.0,0.00015398,2]
[353459409,1739851775668,-500.0,0.00015398,2]
[353459410,1739851775690,-500.0,0.00015398,2]
[353459411,1739851775712,-500.0,0.00015398,2]
[353459412,1739851775734,-500.0,0.00015398,2]
[353459413,1739851775758,-500.0,0.00015398,2]
[353459414,1739851775780,-500.0,0.00015398,2]
[353459415,1739851775802,-500.0,0.00015398,2]
[353459416,1739851775823,-500.0,0.00015398,2]
[353459417,1739851775844,-500.0,0.00015398,2]
[353459418,1739851775865,-343.56,0.00015398,2]
[353459419,1739851775885,-284.19,0.00015398,2]
[353459420,1739851775906,-500.0,0.00015398,2]
[353459421,1739851775928,-500.0,0.00015398,2]
[353459422,1739851775948,-515.186,0.00015399,2]
[353459423,1739851775968,-505.5021649,0.00015399,2]
[353459424,1739851775989,-503.21458797,0.00015399,2]
[353459425,1739851776009,-258.75019048,0.00015399,2]
[353459426,1739851776029,-214.2,0.00015399,2]
[353459427,1739851776048,-500.0,0.00015399,2]
[353459428,1739851776074,-352.19,0.00015399,2]
[353459429,1739851776095,-500.0,0.00015399,2]
[353459430,1739851776116,-500.0,0.00015399,2]
[353459431,1739851776137,-171.35,0.00015399,2]
[353459432,1739851776157,-500.0,0.00015399,2]
[353459433,1739851776178,-309.95345184,0.00015399,2]
[353459434,1739851776199,-500.0,0.00015399,2]
[353459435,1739851776219,-500.0,0.00015399,2]
[353459436,1739851776240,-500.0,0.00015399,2]
[353459437,1739851776261,-500.0,0.00015399,2]
[353459438,1739851776281,-510.30926141,0.00015399,2]
[353459439,1739851776305,-509.20042152,0.00015399,2]
[353459440,1739851776326,-500.0,0.00015399,2]
[353459441,1739851776350,-500.0,0.00015399,2]
[353459442,1739851776370,-283.54312966,0.00015399,2]
[353459443,1739851776391,-501.47168877,0.00015399,2]
[353459444,1739851776411,-500.47878859,0.00015399,2]
[353459445,1739851776431,-501.18218391,0.00015399,2]
[353459446,1739851776452,-500.0,0.00015399,2]
[353459447,1739851776472,-501.77942504,0.00015399,2]
[353459448,1739851776492,-500.0,0.00015399,2]
[353459449,1739851776513,-614.53,0.00015399,2]
[353459450,1739851776535,-500.0,0.00015399,2]
[353459451,1739851776558,-500.0,0.00015399,2]
[353459452,1739851776578,-500.0,0.00015399,2]
[353459453,1739851776599,-517.63225098,0.00015399,2]
[353459454,1739851776620,-500.0,0.00015399,2]
[353459455,1739851776643,-500.0,0.00015399,2]
[353459456,1739851776664,-500.0,0.00015399,2]
[353459457,1739851776687,-500.0,0.00015399,2]
[353459458,1739851776710,-500.0,0.00015399,2]
[353459459,1739851776732,-500.0,0.00015399,2]
[353459460,1739851776753,-521.5,0.00015399,2]
[353459461,1739851776774,-513.62697231,0.00015399,2]
[353459462,1739851776795,-500.0,0.00015399,2]
[353459463,1739851776907,-500.0,0.00015399,2]
[353459464,1739851776931,-500.46627092,0.00015399,2]
[353459465,1739851776953,-403.93121689,0.00015399,2]
[353459466,1739851776975,-500.0,0.00015399,2]
[353459467,1739851777000,-500.0,0.00015399,2]
[353459468,1739851777023,-500.0,0.00015399,2]
[353459469,1739851777044,-500.0,0.00015399,2]
[353459470,1739851777066,-500.0,0.00015399,2]
[353459471,1739851777087,-500.0,0.00015399,2]
[353459472,1739851777109,-218.14743005,0.00015399,2]
[353459473,1739851777130,-500.0,0.00015399,2]
[353459474,1739851777151,-500.0,0.00015399,2]
[353459475,1739851777172,-500.0,0.00015399,2]
[353459476,1739851777194,-500.0,0.00015399,2]
[353459477,1739851777217,-500.0,0.00015399,2]
[353459478,1739851777239,-500.0,0.00015399,2]
[353459479,1739851777262,-500.0,0.00015399,2]
[353459480,1739851777284,-500.0,0.00015399,2]
[353459481,1739851777312,-500.0,0.00015399,2]
[353459482,1739851777336,-500.0,0.00015399,2]
[353459483,1739851777357,-500.0,0.00015399,2]
[353459484,1739851777381,-500.0,0.00015399,2]
[353459485,1739851777403,-500.0,0.00015399,2]
[353459486,1739851777424,-500.0,0.00015399,2]
[353459487,1739851777447,-500.0,0.00015399,2]
[353459488,1739851777469,-500.0,0.00015399,2]
[353459489,1739851777490,-500.0,0.00015399,2]
[353459490,1739851777512,-500.0,0.00015399,2]
[353459491,1739851777533,-500.0,0.00015399,2]
[353459492,1739851777555,-331.64879416,0.00015399,2]
[353459493,1739851777577,-500.0,0.00015399,2]
[353459494,1739851777598,-500.0,0.00015399,2]
[353459495,1739851777620,-396.72438768,0.00015399,2]
[353459496,1739851777641,-500.0,0.00015399,2]
[353459497,1739851777664,-524.3,0.00015399,2]
[353459498,1739851777684,-500.0,0.00015399,2]
[353459499,1739851777707,-500.0,0.00015399,2]
[353459500,1739851777730,-504.82388529,0.00015399,2]
[353459501,1739851777752,-500.0,0.00015399,2]
[353459502,1739851777774,-500.0,0.00015399,2]
[353459503,1739851777806,-506.91150807,0.00015399,2]
[353459504,1739851777829,-5570.12,0.00015399,2]
[353459505,1739851777850,-500.0,0.00015399,2]
[353459506,1739851777872,-500.75477775,0.00015399,2]
[353459507,1739851777892,-505.98988764,0.00015399,2]
[353459508,1739851777915,-500.0,0.00015399,2]
[353459509,1739851777937,-500.0,0.00015399,2]
[353459510,1739851777959,-500.51526366,0.00015399,2]
[353459511,1739851777985,-500.0,0.00015399,2]
[353459512,1739851778007,-500.0,0.00015399,2]
[353459513,1739851778027,-500.0,0.00015399,2]
[353459514,1739851778048,-502.42287607,0.00015399,2]
[353459515,1739851778068,-505.24745287,0.00015399,2]
[353459516,1739851778089,-500.0,0.00015399,2]
[353459517,1739851778110,-500.0,0.00015399,2]
[353459518,1739851778130,-500.0,0.00015399,2]
[353459519,1739851778151,-506.00562981,0.00015399,2]
[353459520,1739851778171,-502.8348959,0.00015399,2]
[353459521,1739851778192,-500.0,0.00015399,2]
[353459522,1739851778212,-500.0,0.00015399,2]
[353459523,1739851778232,-504.39545797,0.00015399,2]
[353459524,1739851778254,-500.0,0.00015399,2]
[353459525,1739851778277,-502.89373479,0.00015399,2]
[353459526,1739851778300,-500.0,0.00015399,2]
[353459527,1739851778320,-209.5551943,0.00015399,2]
[353459528,1739851778342,-500.0,0.00015399,2]
[353459529,1739851778363,-537.63524808,0.00015399,2]
[353459530,1739851778385,-500.0,0.00015399,2]
[353459531,1739851778406,-500.0,0.00015399,2]
[353459532,1739851778427,-502.41594839,0.00015399,2]
[353459533,1739851778448,-501.13928089,0.00015399,2]
[353459534,1739851778469,-503.25167458,0.00015399,2]
[353459535,1739851778491,-500.0,0.00015399,2]
[353459536,1739851778513,-508.03884181,0.00015399,2]
[353459537,1739851778534,-500.0,0.00015399,2]
[353459538,1739851778554,-506.34044382,0.00015399,2]
[353459539,1739851778576,-500.0,0.00015399,2]
[353459540,1739851778597,-233.43592483,0.00015399,2]
[353459541,1739851778619,-500.0,0.00015399,2]
[353459542,1739851778640,-500.0,0.00015399,2]
[353459543,1739851778662,-503.34952851,0.00015399,2]
[353459544,1739851778684,-505.63976261,0.00015399,2]
[353459545,1739851778706,-504.65490974,0.00015399,2]
[353459546,1739851778727,-500.0,0.00015399,2]
[353459547,1739851778751,-1455.31,0.00015399,2]
[353459548,1739851778772,-500.0,0.00015399,2]
[353459549,1739851778794,-500.0,0.00015399,2]
[353459550,1739851778815,-547.37597785,0.00015399,2]
[353459551,1739851778836,-500.0,0.00015399,2]
[353459552,1739851778857,-450.88976053,0.000154,2]
[353459580,1739851832649,-500.0,0.00014164,2]
[353459582,1739851832658,-116.0,0.00015373,2]
[353459586,1739851832703,-384.0,0.00015373,2]
[353459587,1739851832713,-500.0,0.00015398,2]
[353459588,1739851832722,-500.0,0.00015398,2]
[353459589,1739851832731,-500.0,0.00015398,2]
[353459590,1739851832740,-300.0,0.00015398,2]
[353459591,1739851832749,-500.0,0.00015398,2]
[353459592,1739851832759,-500.0,0.00015398,2]
[353459593,1739851832768,-500.0,0.00015398,2]
[353459594,1739851832777,-500.0,0.00015398,2]
[353459595,1739851832786,-441.22,0.00015398,2]
[353459596,1739851832795,-622.27,0.00015398,2]
[353459597,1739851832805,-500.0,0.00015399,2]
[353459598,1739851832815,-500.0,0.00015399,2]
[353459599,1739851832824,-501.47973168,0.00015399,2]
[353459600,1739851832833,-500.0,0.00015399,2]
[353459601,1739851832843,-500.0,0.00015399,2]
[353459602,1739851832852,-502.0054615,0.00015399,2]
[353459603,1739851832861,-500.0,0.00015399,2]
[353459604,1739851832870,-500.0,0.00015399,2]
[353459605,1739851832879,-500.0,0.00015399,2]
[353459606,1739851832978,-500.0,0.00015399,2]
[353459607,1739851832990,-500.0,0.00015399,2]
[353459608,1739851832999,-500.0,0.00015399,2]
[353459609,1739851833009,-500.0,0.00015399,2]